bitfinex/quotes_BTCUSD_20240723
["timestamp","ask_amount","ask_price","bid_price","bid_amount"]
[1721755848082,1.36823791,66007.0,66006.0,0.0160413]
[1721755848312,0.92922,66007.0,66006.0,0.0160413]
[1721755848465,0.91822,66007.0,66006.0,0.0160413]
[1721755848669,0.92822,66007.0,66006.0,0.0160413]
[1721755848876,0.92822,66007.0,66006.0,0.3121423]
[1721755848877,0.01804,66007.0,66006.0,0.3121423]
[1721755849074,0.01804,66007.0,66006.0,0.1606413]
[1721755849284,0.00804,66007.0,66006.0,0.1606413]
[1721755849487,0.01904,66007.0,66006.0,0.1606413]
[1721755849698,0.5227391,66007.0,66006.0,0.1606413]
[1721755849903,1.1287351,66007.0,66006.0,0.1606413]
[1721755850104,1.086533,66007.0,66006.0,0.0160413]
[1721755850910,1.363531,66007.0,66006.0,0.0160413]
[1721755851113,2.47055091,66007.0,66006.0,0.0160413]
[1721755851314,1.70198501,66007.0,66006.0,0.0170413]
[1721755851561,2.49198501,66007.0,66006.0,0.0170413]
[1721755851766,1.70170794,66007.0,66006.0,0.0170413]
[1721755851920,1.61027219,66007.0,66006.0,0.0170413]
[1721755852118,1.61027219,66007.0,66006.0,0.0160413]
[1721755852368,1.70478488,66007.0,66006.0,0.0160413]
[1721755852571,1.70478488,66007.0,66006.0,0.0170413]
[1721755852779,2.66478521,66007.0,66006.0,0.0170413]
[1721755852994,2.67178521,66007.0,66006.0,0.0170413]
[1721755853198,1.81178521,66007.0,66006.0,0.0170413]
[1721755853503,2.94478321,66007.0,66006.0,0.0170413]
[1721755853897,3.07548321,66007.0,66006.0,0.0170413]
[1721755854080,3.07548321,66007.0,66006.0,0.0160413]
[1721755854283,3.07948321,66007.0,66006.0,0.0160413]
[1721755854482,3.24839753,66007.0,66006.0,0.0160413]
[1721755854810,3.24820308,66007.0,66006.0,0.0160413]
[1721755855437,3.24824308,66007.0,66006.0,0.0160413]
[1721755856195,3.55124108,66007.0,66006.0,0.0160413]
[1721755856396,4.31474108,66007.0,66006.0,1e-08]
[1721755857165,4.31074108,66007.0,66006.0,1e-08]
[1721755857374,4.31074108,66007.0,66000.0,0.01]
[1721755857375,1.716637,66001.0,66000.0,0.01]
[1721755857577,2.91497548,66001.0,66000.0,0.01]
[1721755857778,3.07457548,66001.0,66000.0,0.01]
[1721755858004,3.37696209,66001.0,66000.0,0.01]
[1721755858826,3.40196209,66001.0,66000.0,0.01]
[1721755860241,3.09893709,66001.0,66000.0,0.01]
[1721755860886,3.40196209,66001.0,66000.0,0.01]
[1721755861091,3.40196209,66001.0,65991.0,0.002]
[1721755861092,1.81686692,65992.0,65991.0,0.002]
[1721755861385,0.76422592,65988.0,65987.0,0.009383]
[1721755861605,0.76422592,65988.0,65971.0,0.0791]
[1721755861606,0.151579,65972.0,65971.0,0.0791]
[1721755861808,0.857895,65972.0,65971.0,0.0791]
[1721755862016,1.161053,65972.0,65971.0,0.0791]
[1721755862686,1.464211,65972.0,65971.0,0.002]
[1721755863062,2.70638891,65972.0,65971.0,0.002]
[1721755863219,2.73638783,65972.0,65971.0,0.002]
[1721755863418,1.66323091,65972.0,65971.0,0.002]
[1721755863665,1.71322983,65972.0,65971.0,0.002]
[1721755863868,2.70300105,65972.0,65971.0,0.002]
[1721755864050,2.66300811,65972.0,65971.0,0.002]
[1721755864250,2.65000811,65972.0,65971.0,0.002]
[1721755864480,2.71960811,65972.0,65971.0,0.002]
[1721755864684,2.73464113,65972.0,65971.0,0.002]
[1721755864887,3.03779913,65972.0,65971.0,0.002]
[1721755865090,3.03779913,65972.0,65951.0,0.002]
[1721755865091,0.14999892,65965.0,65951.0,0.002]
[1721755865287,0.151618,65955.0,65951.0,0.002]
[1721755865491,1.00511191,65955.0,65951.0,0.002]
[1721755865714,1.61158591,65955.0,65951.0,0.002]
[1721755866055,0.251618,65955.0,65954.0,0.0818]
[1721755866232,0.303219,65959.0,65954.0,0.0818]
[1721755866522,0.1,65962.0,65954.0,0.0818]
[1721755866523,0.1,65958.0,65954.0,0.23342]
[1721755866726,0.1,65958.0,65955.0,0.211617]
[1721755866962,0.14701991,65966.0,65955.0,0.211617]
[1721755866963,0.002794,65966.0,65959.0,0.0665]
[1721755867166,0.1,65965.0,65960.0,0.1697]
[1721755867610,0.454813,65961.0,65960.0,0.1697]
[1721755867924,0.151603,65962.0,65960.0,0.1697]
[1721755868125,0.151604,65961.0,65960.0,0.1697]
[1721755868332,0.454813,65961.0,65960.0,0.1697]
[1721755868532,0.758022,65961.0,65960.0,0.1697]
[1721755868735,0.151604,65961.0,65960.0,0.1697]
[1721755868937,0.459813,65961.0,65960.0,0.1697]
[1721755869199,0.151603,65962.0,65960.0,0.1697]
[1721755869334,0.454813,65961.0,65960.0,0.1697]
[1721755869537,0.459813,65961.0,65960.0,0.1697]
[1721755869785,0.763022,65961.0,65960.0,0.1697]
[1721755870211,0.763022,65961.0,65954.0,0.0001]
[1721755870212,0.87201991,65961.0,65956.0,0.0654]
[1721755870400,0.758067,65957.0,65956.0,0.0654]
[1721755870657,1.751294,65957.0,65956.0,0.0654]
[1721755870857,1.061329,65955.0,65954.0,0.0001]
[1721755871135,2.08834891,65955.0,65954.0,0.0001]
[1721755871491,2.76468483,65955.0,65954.0,0.0001]
[1721755871691,2.66468591,65955.0,65954.0,0.0001]
[1721755872045,2.60508483,65955.0,65954.0,0.0001]
[1721755872458,2.76468483,65955.0,65954.0,0.0001]
[1721755872636,2.62868591,65955.0,65954.0,0.0001]
[1721755872992,2.77868483,65955.0,65954.0,0.0001]
[1721755873192,2.67868591,65955.0,65954.0,0.0001]
[1721755873395,2.41958591,65955.0,65954.0,0.0001]
[1721755873903,2.40558591,65955.0,65954.0,0.0001]
[1721755874027,2.51958483,65955.0,65954.0,0.0001]
[1721755874227,2.41962591,65955.0,65954.0,0.0001]
[1721755874446,2.40562591,65955.0,65954.0,0.0001]
[1721755874675,2.39162591,65955.0,65954.0,0.0001]
[1721755875002,2.41962591,65955.0,65954.0,0.0001]
[1721755875248,2.51962483,65955.0,65954.0,0.001024]
[1721755875451,3.48509883,65955.0,65954.0,0.001024]
[1721755875646,3.48509883,65955.0,65951.0,0.002]
[1721755875647,1.67422392,65952.0,65951.0,0.002]
[1721755875880,2.42164491,65952.0,65951.0,0.002]
[1721755876084,1.30839491,65952.0,65951.0,0.002]
[1721755876804,2.45164491,65952.0,65951.0,0.002]
[1721755877017,2.45164491,65952.0,65933.0,0.00122886]
[1721755877018,0.901664,65935.0,65933.0,0.00122886]
[1721755877224,0.90833092,65934.0,65933.0,0.00122886]
[1721755877433,2.63201683,65934.0,65933.0,0.00122886]
[1721755878091,2.58016136,65934.0,65933.0,0.00122886]
[1721755878371,1.981665,65934.0,65933.0,0.00122886]
[1721755878506,1.161665,65934.0,65933.0,0.00122886]
[1721755878706,1.161665,65934.0,65933.0,0.14212886]
[1721755878909,0.858332,65934.0,65933.0,0.14212886]
[1721755879110,0.454999,65934.0,65933.0,0.14212886]
[1721755879315,0.468999,65934.0,65933.0,0.14212886]
[1721755879583,0.468999,65934.0,65933.0,0.16512886]
[1721755879584,0.482999,65934.0,65933.0,0.16512886]
[1721755879760,0.454999,65934.0,65933.0,0.16512886]
[1721755879963,0.165666,65934.0,65933.0,0.16512886]
[1721755880114,0.468999,65934.0,65933.0,0.16512886]
[1721755880298,0.014,65934.0,65933.0,0.18184175]
[1721755880509,0.51834,65965.0,65938.0,0.05]
[1721755880510,0.002794,65952.0,65938.0,0.05]
[1721755880714,0.303205,65962.0,65938.0,0.05]
[1721755880715,0.15165,65942.0,65939.0,0.1655]
[1721755880913,0.14701991,65954.0,65939.0,0.1655]
[1721755880914,0.151653,65940.0,65939.0,0.1655]
[1721755881114,0.454959,65940.0,65939.0,0.1655]
[1721755881359,0.14701991,65954.0,65939.0,0.1655]
[1721755881558,0.002794,65953.0,65939.0,0.1655]
[1721755881766,0.303281,65946.0,65939.0,0.1655]
[1721755882029,0.303284,65945.0,65939.0,0.1655]
[1721755882306,0.151653,65940.0,65939.0,0.1655]
[1721755882531,0.152653,65940.0,65939.0,0.1655]
[1721755882779,0.152653,65940.0,65939.0,0.0813]
[1721755882780,0.454959,65940.0,65939.0,0.0813]
[1721755882964,0.758265,65940.0,65939.0,0.0813]
[1721755883163,1.061571,65940.0,65939.0,0.0813]
[1721755883877,1.061665,65934.0,65933.0,0.00122886]
[1721755884078,1.364998,65934.0,65933.0,0.00122886]
[1721755884214,2.314998,65934.0,65933.0,0.00122886]
[1721755884414,2.46201791,65934.0,65933.0,0.00122886]
[1721755884799,2.15868491,65934.0,65933.0,0.00122886]
[1721755885035,1.708332,65934.0,65933.0,0.00122886]
[1721755885248,1.161665,65934.0,65933.0,0.00122886]
[1721755885450,0.872332,65934.0,65933.0,0.00122886]
[1721755886262,0.00921107,65942.0,65933.0,0.00122886]
[1721755886468,0.151663,65936.0,65935.0,0.0773]
[1721755886711,0.151663,65936.0,65935.0,0.1003]
[1721755886908,0.454987,65936.0,65935.0,0.1003]
[1721755887310,0.758311,65936.0,65935.0,0.1003]
[1721755887717,0.1,65945.0,65935.0,0.1003]
[1721755887870,0.1,65945.0,65936.0,0.023]
[1721755888071,0.31253602,65950.0,65938.0,0.151656]
[1721755888271,0.303285,65945.0,65939.0,0.023]
[1721755888491,0.771552,65952.0,65939.0,0.023]
[1721755888725,0.771552,65952.0,65938.0,0.0853]
[1721755888726,0.151634,65948.0,65938.0,0.0853]
[1721755888928,0.002794,65951.0,65946.0,0.1465]
[1721755888929,0.151628,65951.0,65946.0,0.1465]
[1721755889162,0.002794,65951.0,65947.0,0.326271]
[1721755889305,0.003,65950.0,65948.0,0.151633]
[1721755889483,0.01,65950.0,65949.0,0.023]
[1721755889694,0.003,65950.0,65947.0,0.023]
[1721755889919,0.454903,65948.0,65947.0,0.023]
[1721755890137,1.061441,65948.0,65947.0,0.023]
[1721755890518,0.758182,65947.0,65946.0,0.01507049]
[1721755890683,0.30326,65950.0,65946.0,0.01507049]
[1721755890890,0.1,65951.0,65946.0,0.01507049]
[1721755891091,0.10004,65955.0,65954.0,0.15162]
[1721755891294,0.10004,65955.0,65954.0,0.01507049]
[1721755891295,0.251658,65955.0,65954.0,0.01507049]
[1721755891513,0.554895,65955.0,65954.0,0.01503049]
[1721755891713,0.554895,65955.0,65954.0,0.03803049]
[1721755892170,0.858132,65955.0,65954.0,0.03803049]
[1721755892304,1.30838891,65955.0,65954.0,0.03803049]
[1721755892749,1.31338891,65955.0,65954.0,0.03803049]
[1721755892923,1.61662591,65955.0,65954.0,0.03803049]
[1721755893127,2.42662483,65955.0,65954.0,0.01503049]
[1721755893356,2.32662591,65955.0,65954.0,0.01503049]
[1721755894116,2.02338891,65955.0,65954.0,0.01503049]
[1721755894312,1.573132,65955.0,65954.0,0.01503049]
[1721755894513,0.858132,65955.0,65954.0,0.09293049]
[1721755894743,0.163658,65955.0,65954.0,0.11593049]
[1721755894973,0.474895,65955.0,65954.0,0.17723049]
[1721755895345,0.766132,65955.0,65954.0,0.17723049]
[1721755895516,0.766132,65955.0,65954.0,0.17623049]
[1721755895517,1.072369,65955.0,65954.0,0.17623049]
[1721755895760,1.061369,65955.0,65954.0,0.17623049]
[1721755896241,0.768132,65955.0,65954.0,0.17623049]
[1721755896448,0.768132,65955.0,65954.0,0.1612]
[1721755897616,0.765132,65955.0,65954.0,0.1612]
[1721755897818,0.151658,65955.0,65954.0,0.1612]
[1721755897950,0.160698,65955.0,65954.0,0.1612]
[1721755898348,0.00608,65955.0,65954.0,0.1612]
[1721755898555,0.00608,65955.0,65954.0,0.616061]
[1721755898756,8e-05,65955.0,65954.0,0.2228061]
[1721755898980,0.00208,65955.0,65954.0,0.1612]
[1721755899185,0.457935,65955.0,65954.0,0.1612]
[1721755900622,0.00108,65955.0,65954.0,0.616061]
[1721755900818,0.00108,65955.0,65954.0,0.31282]
[1721755901578,0.00108,65955.0,65954.0,0.922302]
[1721755902028,0.00108,65955.0,65954.0,1.17155211]
[1721755902468,8e-05,65955.0,65954.0,1.17155211]
[1721755903037,0.00108,65955.0,65954.0,1.17155211]
[1721755903239,0.00108,65955.0,65954.0,1.52479311]
[1721755903437,0.00108,65955.0,65954.0,1.74258374]
[1721755903982,0.00108,65955.0,65954.0,1.74558374]
[1721755904418,0.00108,65955.0,65954.0,1.62179311]
[1721755904624,0.00208,65955.0,65954.0,2.05822106]
[1721755904799,4e-05,65965.0,65963.0,0.0791]
[1721755905030,4e-05,65965.0,65964.0,1.32100191]
[1721755905266,4e-05,65965.0,65964.0,1.62407485]
[1721755905440,4e-05,65965.0,65964.0,1.50290191]
[1721755905649,0.002794,65977.0,65973.0,0.05]
[1721755905858,0.4683,66014.0,65990.0,0.1447]
[1721755905859,0.303034,65999.0,65990.0,0.1447]
[1721755906053,4e-05,66007.0,65991.0,0.16648991]
[1721755906255,0.303015,66004.0,65991.0,0.16648991]
[1721755906484,0.303024,66002.0,65995.0,0.151525]
[1721755906639,0.303015,66004.0,65991.0,0.16648991]
[1721755906839,0.303015,66004.0,65995.0,0.151525]
[1721755907041,0.152353,66001.0,65996.0,0.023]
[1721755907265,0.151515,66000.0,65996.0,0.023]
[1721755907506,0.00084,66001.0,65996.0,0.151523]
[1721755907507,0.152353,66001.0,65996.0,0.151523]
[1721755907690,0.152353,66001.0,66000.0,0.151515]
[1721755907691,0.00084,66001.0,66000.0,0.151515]
[1721755907955,0.00084,66001.0,66000.0,1.0657553]
[1721755908169,0.00084,66001.0,66000.0,1.4917851]
[1721755908377,0.00084,66001.0,66000.0,1.63874775]
[1721755908578,0.00084,66001.0,66000.0,1.68874775]
[1721755908785,0.00484,66001.0,66000.0,1.99177775]
[1721755908987,0.00484,66001.0,66000.0,1.98874805]
[1721755909191,0.00084,66001.0,66000.0,2.11453501]
[1721755909410,0.00484,66001.0,66000.0,2.11653501]
[1721755909608,0.00484,66001.0,66000.0,2.11652799]
[1721755910420,0.00484,66001.0,66000.0,2.12752799]
[1721755910620,0.00484,66001.0,66000.0,1.99974805]
[1721755911172,0.00484,66001.0,66000.0,1.69671805]
[1721755911422,0.00084,66001.0,66000.0,1.69671805]
[1721755912029,0.00184,66001.0,66000.0,1.7339899]
[1721755912183,0.00184,66001.0,66000.0,1.74333438]
[1721755912397,0.00184,66001.0,66000.0,1.34030438]
[1721755912583,0.00184,66001.0,66000.0,1.4497554]
[1721755913015,0.00184,66001.0,66000.0,0.30111991]
[1721755913264,0.00184,66001.0,66000.0,0.75566491]
[1721755913475,0.00184,66001.0,66000.0,1.36172491]
[1721755913678,0.00184,66001.0,66000.0,0.75566491]
[1721755913942,0.00184,66001.0,66000.0,1.08983793]
[1721755914152,0.00184,66001.0,66000.0,1.39286793]
[1721755914560,0.00184,66001.0,66000.0,1.54286793]
[1721755914979,0.00184,66001.0,66000.0,1.56586793]
[1721755915335,0.00184,66001.0,66000.0,1.87089793]
[1721755915536,0.00184,66001.0,66000.0,1.86889793]
[1721755915735,4e-05,66007.0,66000.0,1.86889793]
[1721755915736,4e-05,66007.0,66006.0,1.858009]
[1721755915950,4e-05,66007.0,66006.0,3.55234905]
[1721755916970,4e-05,66007.0,66006.0,3.55634905]
[1721755917467,4e-05,66007.0,66006.0,3.55234905]
[1721755917685,0.00104,66007.0,66006.0,3.55234905]
[1721755917877,0.00104,66007.0,66006.0,3.58934905]
[1721755919228,0.00854,66021.0,66020.0,1.110283]
[1721755919429,0.00854,66021.0,66020.0,2.1266604]
[1721755919630,0.00854,66021.0,66020.0,2.50888726]
[1721755920163,0.00854,66021.0,66020.0,2.51088726]
[1721755920368,0.00854,66021.0,66020.0,2.97342526]
[1721755920481,0.0793,66061.0,66032.0,0.0604]
[1721755920686,0.01054,66049.0,66033.0,0.14701991]
[1721755920903,0.07348942,66041.0,66032.0,0.01503049]
[1721755921105,0.454317,66033.0,66032.0,0.01503049]
[1721755921304,0.454317,66033.0,66032.0,0.03803049]
[1721755921509,0.0661,66043.0,66032.0,0.03803049]
[1721755921707,0.82626533,66033.0,66026.0,0.002794]
[1721755921909,0.45442,66018.0,66017.0,0.002794]
[1721755922140,0.0649,66024.0,66000.0,0.002794]
[1721755922312,0.454531,66002.0,66001.0,0.0147694]
[1721755922514,0.302998,66007.0,66001.0,0.0147694]
[1721755922816,0.151506,66004.0,66002.0,0.002794]
[1721755923051,0.75754,66003.0,66002.0,0.002794]
[1721755923180,0.0624,66004.0,65989.0,0.0773]
[1721755923384,0.0624,66004.0,65974.0,0.05]
[1721755923385,0.303087,65988.0,65980.0,0.0773]
[1721755923580,0.303087,65988.0,65981.0,0.07460654]
[1721755923581,0.303089,65988.0,65981.0,0.07460654]
[1721755923782,0.15155,65985.0,65981.0,0.07460654]
[1721755924051,0.14701991,66003.0,65981.0,0.07460654]
[1721755924052,0.14701991,66003.0,66002.0,0.001]
[1721755924243,1.30757591,66003.0,66002.0,0.001]
[1721755924373,1.61059191,66003.0,66002.0,0.001]
[1721755925055,0.85754,66003.0,66002.0,0.001]
[1721755925245,1.160556,66003.0,66002.0,0.001]
[1721755925473,0.151533,65992.0,65991.0,0.001]
[1721755925789,0.01,66004.0,65991.0,0.14801991]
[1721755926009,0.077,66008.0,65992.0,0.025794]
[1721755926213,0.07348942,66007.0,65992.0,0.025794]
[1721755926409,0.07348942,66007.0,65992.0,0.023]
[1721755926410,0.454593,65993.0,65992.0,0.023]
[1721755926704,1.060717,65993.0,65992.0,0.023]
[1721755927062,0.757655,65993.0,65992.0,0.023]
[1721755927395,0.454593,65993.0,65992.0,0.023]
[1721755927610,0.17348942,66007.0,65992.0,0.023]
[1721755927611,0.1,66007.0,65992.0,0.19701991]
[1721755927846,0.0656,66010.0,66003.0,0.151506]
[1721755927847,0.1,66009.0,66003.0,0.151506]
[1721755928049,0.4683,66013.0,66004.0,0.14701991]
[1721755928255,0.1,66012.0,66005.0,0.002794]
[1721755928429,0.4683,66013.0,66006.0,0.14701991]
[1721755928639,0.4683,66013.0,66007.0,0.023]
[1721755928995,0.4683,66013.0,66010.0,0.151491]
[1721755929240,0.151487,66012.0,66011.0,0.023]
[1721755929443,0.4683,66028.0,66011.0,0.0767]
[1721755929648,0.4683,66028.0,66012.0,0.025794]
[1721755929819,0.001,66013.0,66012.0,0.025794]
[1721755930035,0.001,66013.0,66012.0,0.023]
[1721755930249,0.454455,66013.0,66012.0,0.023]
[1721755930453,0.151485,66013.0,66012.0,0.023]
[1721755930663,0.151485,66013.0,66012.0,0.04767199]
[1721755930875,0.1,66027.0,66012.0,0.19915899]
[1721755931089,0.151483,66014.0,66013.0,0.002794]
[1721755931357,0.07348942,66019.0,66012.0,0.04767199]
[1721755931358,0.151485,66013.0,66012.0,0.04767199]
[1721755931570,0.454455,66013.0,66012.0,0.04767199]
[1721755932013,0.153485,66013.0,66012.0,0.04767199]
[1721755932253,0.002,66013.0,66012.0,0.04767199]
[1721755932692,0.00204,66013.0,66012.0,0.04767199]
[1721755932970,0.00204,66013.0,66012.0,0.780437]
[1721755933183,0.00204,66013.0,66012.0,0.478462]
[1721755933422,0.00204,66013.0,66012.0,0.175487]
[1721755933656,0.00504,66013.0,66012.0,0.174487]
[1721755933884,4e-05,66013.0,66012.0,0.53991039]
[1721755934111,4e-05,66013.0,66012.0,0.23993539]
[1721755934350,0.152525,66013.0,66012.0,0.08844839]
[1721755934580,0.00104,66013.0,66012.0,0.026]
[1721755934828,0.152525,66013.0,66012.0,0.026]
[1721755935120,0.152525,66013.0,66012.0,1.39483191]
[1721755935121,0.00104,66013.0,66012.0,1.39483191]
[1721755935288,0.00104,66013.0,66012.0,1.61757681]
[1721755935519,0.00104,66013.0,66012.0,0.51168916]
[1721755935955,0.00104,66013.0,66004.0,0.0773]
[1721755936169,0.00104,66013.0,66012.0,0.005]
[1721755936380,0.00104,66013.0,66012.0,0.1307792]
[1721755936613,0.00104,66013.0,66012.0,0.66000833]
[1721755936614,4e-05,66013.0,66012.0,0.66000833]
[1721755936820,4e-05,66013.0,66012.0,1.26595833]
[1721755937028,4e-05,66013.0,66012.0,1.47944382]
[1721755937246,4e-05,66013.0,66012.0,1.17446882]
[1721755937714,4e-05,66013.0,66012.0,1.19746882]
[1721755938022,4e-05,66013.0,66012.0,1.19946882]
[1721755938673,4e-05,66013.0,66012.0,1.55244382]
[1721755938871,4e-05,66013.0,66012.0,1.59944382]
[1721755939075,4e-05,66013.0,66012.0,0.12777005]
[1721755939273,4e-05,66013.0,66012.0,0.13077005]
[1721755939487,4e-05,66013.0,66012.0,0.58523205]
[1721755939685,4e-05,66013.0,66012.0,0.13077005]
[1721755939888,4e-05,66013.0,66012.0,0.12777005]
[1721755940088,4e-05,66013.0,66012.0,0.36778015]
[1721755940289,4e-05,66013.0,66012.0,0.73516496]
[1721755940515,4e-05,66013.0,66012.0,0.75816496]
[1721755942016,4e-05,66013.0,66012.0,1.06113996]
[1721755942217,4e-05,66013.0,66012.0,0.93536991]
[1721755942541,4e-05,66013.0,66012.0,0.15669282]
[1721755942742,0.757465,66013.0,66012.0,0.13369282]
[1721755942906,4e-05,66013.0,66012.0,0.13369282]
[1721755943112,4e-05,66013.0,66012.0,0.2935491]
[1721755943310,4e-05,66013.0,66012.0,0.5945241]
[1721755943509,4e-05,66013.0,66012.0,0.60552812]
[1721755943713,0.00104,66013.0,66012.0,0.15706612]
[1721755944132,4e-05,66013.0,66012.0,0.17406612]
[1721755944355,0.00104,66013.0,66012.0,0.18106612]
[1721755944560,0.00104,66013.0,66012.0,0.63552812]
[1721755944758,0.00104,66013.0,66012.0,0.32555312]
[1721755944937,0.00104,66013.0,66012.0,0.62852812]
[1721755945150,0.00104,66013.0,66012.0,0.93150312]
[1721755945353,0.00104,66013.0,66012.0,1.50359803]
[1721755945550,0.00104,66013.0,66012.0,1.15061557]
[1721755945758,0.00104,66013.0,66012.0,1.16061557]
[1721755945961,0.00104,66013.0,66012.0,0.85764057]
[1721755946160,0.00104,66013.0,66012.0,0.39580929]
[1721755946161,0.00204,66013.0,66012.0,0.39580929]
[1721755946386,0.30501,66013.0,66012.0,0.16568938]
[1721755946527,0.30501,66013.0,66012.0,0.14268938]
[1721755946528,0.758465,66013.0,66012.0,0.14268938]
[1721755946729,1.061435,66013.0,66012.0,0.016913]
[1721755946929,1.061435,66013.0,66012.0,0.006913]
[1721755947130,0.757465,66013.0,66012.0,0.011913]
[1721755947870,0.757465,66013.0,66012.0,0.034913]
[1721755948044,0.758465,66013.0,66012.0,0.040913]
[1721755948431,0.761465,66013.0,66012.0,0.040913]
[1721755948720,0.458495,66013.0,66012.0,0.040913]
[1721755948919,0.00404,66013.0,66012.0,0.040913]
[1721755949035,0.30701,66013.0,66012.0,0.06037383]
[1721755949429,0.458495,66013.0,66012.0,0.039913]
[1721755950048,0.761465,66013.0,66012.0,0.039913]
[1721755950222,0.458495,66013.0,66012.0,0.039913]
[1721755950362,0.454495,66013.0,66012.0,0.026913]
[1721755950571,1.04328491,66013.0,66012.0,0.003913]
[1721755950782,2.62522383,66013.0,66012.0,0.004913]
[1721755950982,0.454641,65986.0,65985.0,0.002794]
[1721755951207,0.211847,65986.0,65985.0,0.12583973]
[1721755951406,0.363394,65986.0,65979.0,0.05176136]
[1721755951702,0.0603,65986.0,65983.0,0.151552]
[1721755952095,0.454683,65980.0,65979.0,0.05176136]
[1721755952307,0.454683,65980.0,65979.0,0.17761221]
[1721755952308,1.202827,65980.0,65979.0,0.17761221]
[1721755952519,0.899705,65980.0,65979.0,0.05176136]
[1721755952904,1.202827,65980.0,65979.0,0.05176136]
[1721755953351,1.34984691,65980.0,65979.0,0.05776136]
[1721755953531,1.202827,65980.0,65979.0,0.05776136]
[1721755953909,1.202827,65980.0,65979.0,0.05176136]
[1721755953910,1.34984691,65980.0,65979.0,0.05176136]
[1721755954119,1.65296891,65980.0,65979.0,0.05176136]
[1721755954323,1.70296891,65980.0,65979.0,0.05176136]
[1721755954525,1.80296891,65980.0,65979.0,0.05176136]
[1721755954908,1.90296783,65980.0,65979.0,0.05176136]
[1721755955258,2.20608983,65980.0,65979.0,0.05176136]
[1721755955404,2.20608983,65980.0,65979.0,0.05276136]
[1721755955405,2.21708983,65980.0,65979.0,0.05276136]
[1721755955604,2.21708983,65980.0,65951.0,0.002]
[1721755955605,0.758125,65952.0,65951.0,0.002]
[1721755955829,0.454875,65952.0,65951.0,0.002]
[1721755956187,0.151625,65952.0,65951.0,0.002]
[1721755956605,0.454875,65952.0,65951.0,0.002]
[1721755956806,0.758125,65952.0,65951.0,0.002]
[1721755957254,0.303242,65954.0,65951.0,0.002]
[1721755957408,0.151625,65952.0,65951.0,0.002]
[1721755957608,0.151612,65958.0,65951.0,0.16447591]
[1721755957820,0.303201,65963.0,65952.0,0.002794]
[1721755958064,0.303201,65963.0,65951.0,0.16447591]
[1721755958065,0.14701991,65962.0,65951.0,0.002]
[1721755958452,0.003,65952.0,65951.0,0.003]
[1721755958660,0.4683,65964.0,65951.0,0.003]
[1721755958860,4e-05,65952.0,65951.0,0.0339988]
[1721755959012,4e-05,65952.0,65951.0,0.003]
[1721755959216,4e-05,65952.0,65951.0,0.154627]
[1721755959392,4e-05,65952.0,65951.0,0.026]
[1721755959733,0.151665,65952.0,65951.0,0.025]
[1721755960007,4e-05,65952.0,65951.0,0.002]
[1721755960388,4e-05,65952.0,65951.0,0.60390191]
[1721755960600,4e-05,65952.0,65951.0,0.93015691]
[1721755960731,4e-05,65952.0,65951.0,0.93715691]
[1721755961150,0.00204,65952.0,65951.0,0.63390191]
[1721755961335,0.00204,65952.0,65951.0,1.061292]
[1721755961533,4e-05,65952.0,65951.0,0.454782]
[1721755961794,4e-05,65952.0,65951.0,0.762037]
[1721755961995,4e-05,65952.0,65951.0,1.01905691]
[1721755962199,4e-05,65952.0,65951.0,1.08145691]
[1721755962803,4e-05,65952.0,65951.0,0.77820191]
[1721755963345,4e-05,65952.0,65951.0,0.1763]
[1721755963550,4e-05,65952.0,65951.0,0.327927]
[1721755963795,4e-05,65952.0,65951.0,0.631182]
[1721755963995,4e-05,65952.0,65951.0,0.036]
[1721755964152,4e-05,65952.0,65951.0,0.013]
[1721755964348,0.758165,65952.0,65951.0,0.013]
[1721755965003,0.758165,65952.0,65951.0,0.009]
[1721755965182,0.758165,65952.0,65951.0,0.002]
[1721755965383,1.072415,65952.0,65951.0,0.003]
[1721755965812,0.465915,65952.0,65951.0,0.003]
[1721755966020,0.162665,65952.0,65951.0,0.026]
[1721755966180,0.476915,65952.0,65951.0,0.027]
[1721755966530,4e-05,65952.0,65951.0,0.026]
[1721755966841,4e-05,65952.0,65951.0,0.2258099]
[1721755967035,4e-05,65952.0,65951.0,0.259627]
[1721755967238,4e-05,65952.0,65951.0,0.108]
[1721755967396,4e-05,65952.0,65951.0,0.107]
[1721755967593,4e-05,65952.0,65951.0,0.258627]
[1721755967793,4e-05,65952.0,65951.0,0.259627]
[1721755967794,0.00704,65952.0,65951.0,0.259627]
[1721755968115,0.00204,65952.0,65951.0,0.562882]
[1721755968318,0.00204,65952.0,65951.0,0.108]
[1721755968537,0.60654,65952.0,65951.0,0.025]
[1721755968742,0.758165,65952.0,65951.0,0.005]
[1721755968940,0.454915,65952.0,65951.0,0.036]
[1721755969170,0.758165,65952.0,65951.0,0.036]
[1721755969330,1.061415,65952.0,65951.0,0.025]
[1721755969530,1.061415,65952.0,65951.0,0.006]
[1721755969742,1.061415,65952.0,65951.0,0.029]
[1721755969743,0.758165,65952.0,65951.0,0.029]
[1721755970445,1.124415,65952.0,65951.0,0.029]
[1721755970651,1.124415,65952.0,65951.0,0.006]
[1721755970848,1.124415,65952.0,65951.0,0.002]
[1721755971194,1.129415,65952.0,65951.0,0.002]
[1721755971392,1.128415,65952.0,65951.0,0.002]
[1721755971746,1.128415,65952.0,65951.0,0.003]
[1721755971747,1.129415,65952.0,65951.0,0.003]
[1721755971947,0.459915,65952.0,65951.0,0.003]
[1721755972147,1.066415,65952.0,65951.0,0.026]
[1721755972352,1.062415,65952.0,65951.0,0.026]
[1721755972708,0.770165,65952.0,65951.0,0.027913]
[1721755973358,0.466915,65952.0,65951.0,0.027913]
[1721755973564,0.01204,65952.0,65951.0,0.78144291]
[1721755973776,0.01204,65952.0,65951.0,0.7222616]
[1721755973944,0.01104,65952.0,65951.0,0.2663796]